bitfinex-derivatives/quotes_BTCF0:USTF0_20251128
["timestamp","ask_amount","ask_price","bid_price","bid_amount"]
[1764330724473,0.4401,91410.0,91409.0,0.05139192]
[1764330726469,0.4401,91410.0,91409.0,0.06784462]
[1764330732875,0.4401,91410.0,91409.0,0.02255462]
[1764330733182,0.4401,91410.0,91409.0,0.06784462]
[1764330736285,0.4510419,91410.0,91409.0,0.06784462]
[1764330737580,0.4510419,91410.0,91409.0,0.07878662]
[1764330738985,0.4510419,91410.0,91409.0,0.06784462]
[1764330740681,0.1310419,91410.0,91409.0,0.06784462]
[1764330741074,0.4810419,91410.0,91409.0,0.02255462]
[1764330741277,0.0310438,91394.0,91393.0,0.04435]
[1764330741490,0.4210438,91394.0,91393.0,0.04435]
[1764330741785,0.4210438,91394.0,91393.0,0.0552939]
[1764330741981,0.4210438,91394.0,91393.0,0.04435]
[1764330742178,0.4211443,91394.0,91393.0,0.04435]
[1764330742378,0.4211443,91394.0,91393.0,0.04935]
[1764330743585,0.0001005,91394.0,91393.0,0.04935]
[1764330743784,0.0001005,91394.0,91393.0,0.05035]
[1764330744082,0.0202005,91394.0,91393.0,0.02823]
[1764330744289,0.4002005,91394.0,91393.0,0.006]
[1764330744678,0.5726005,91394.0,91393.0,0.006]
[1764330745280,0.5726005,91394.0,91393.0,0.02823]
[1764330745478,0.5726005,91394.0,91393.0,0.006]
[1764330746080,0.5726005,91394.0,91393.0,0.02246868]
[1764330748192,0.5726005,91394.0,91393.0,0.06681868]
[1764330750495,0.5726005,91394.0,91384.0,0.00016413]
[1764330750689,0.3918449,91385.0,91384.0,0.00016413]
[1764330750886,1.03102075,91385.0,91384.0,0.00016413]
[1764330751296,1.03102075,91385.0,91370.0,0.05716]
[1764330751297,0.0310465,91371.0,91370.0,0.05716]
[1764330751498,0.47117782,91371.0,91370.0,0.05716]
[1764330753094,0.47117782,91371.0,91370.0,0.07322607]
[1764330753690,0.47617782,91371.0,91370.0,0.07322607]
[1764330754901,0.19617782,91371.0,91370.0,0.07322607]
[1764330755102,0.40617782,91371.0,91370.0,0.07322607]
[1764330756304,0.39523132,91371.0,91370.0,0.07322607]
[1764330763113,0.40617782,91371.0,91370.0,0.08417277]
[1764330764009,0.39523132,91371.0,91370.0,0.08417277]
[1764330771413,0.00513132,91371.0,91370.0,0.08417277]
[1764330771810,0.02523132,91371.0,91370.0,0.06205277]
[1764330772118,0.02523132,91371.0,91370.0,0.08321277]
[1764330772905,0.02523132,91371.0,91370.0,0.08421277]
[1764330773107,0.02423132,91371.0,91370.0,0.08421277]
[1764330773711,0.02423132,91371.0,91370.0,0.08321277]
[1764330775122,0.00413132,91371.0,91370.0,0.08321277]
[1764330777312,0.02423132,91371.0,91370.0,0.08321277]
[1764330779819,0.03517782,91371.0,91370.0,0.08321277]
[1764330780719,0.03417782,91371.0,91370.0,0.08321277]
[1764330781025,0.02323132,91371.0,91370.0,0.08321277]
[1764330781622,0.03417782,91371.0,91370.0,0.08321277]
[1764330782222,0.47417782,91371.0,91370.0,0.08321277]
[1764330784926,0.46323132,91371.0,91370.0,0.08321277]
[1764330786427,0.46323132,91371.0,91370.0,0.07226607]
[1764330789916,0.3608,91402.0,91392.0,0.02157]
[1764330790132,0.3910439,91393.0,91392.0,0.04337]
[1764330791319,0.3920439,91393.0,91392.0,0.04337]
[1764330791824,0.3970439,91393.0,91392.0,0.04337]
[1764330792024,0.3960439,91393.0,91392.0,0.04337]
[1764330793223,0.3960439,91393.0,91390.0,0.3608]
[1764330793224,0.0310441,91391.0,91390.0,0.3608]
[1764330793526,0.031045,91384.0,91383.0,0.00016413]
[1764330793721,0.401045,91384.0,91383.0,0.02173413]
[1764330793922,0.401045,91384.0,91383.0,0.04353413]
[1764330795021,0.402045,91384.0,91383.0,0.04353413]
[1764330795627,0.404045,91384.0,91383.0,0.04353413]
[1764330795828,0.404045,91384.0,91383.0,0.05447923]
[1764330796026,0.404045,91384.0,91383.0,0.04353413]
[1764330796429,0.3931,91384.0,91383.0,0.04353413]
[1764330796733,0.3931,91384.0,91383.0,0.06043121]
[1764330797721,0.3921,91384.0,91383.0,0.06043121]
[1764330801624,0.01205,91384.0,91383.0,0.06043121]
[1764330801832,0.002,91384.0,91383.0,0.06043121]
[1764330803835,0.16248438,91393.0,91392.0,0.056394]
[1764330804025,0.09,91393.0,91392.0,0.056394]
[1764330804224,0.00016413,91394.0,91393.0,0.04545]
[1764330805534,0.00016413,91394.0,91393.0,0.04645]
[1764330806830,0.02026413,91394.0,91393.0,0.04645]
[1764330807633,0.00016413,91394.0,91393.0,0.04645]
[1764330807835,0.00016413,91394.0,91393.0,0.04545]
[1764330808028,0.00016413,91394.0,91393.0,0.04645]
[1764330808223,0.01021413,91394.0,91393.0,0.04645]
[1764330808735,0.00016413,91394.0,91393.0,0.04645]
[1764330809330,0.00016413,91394.0,91393.0,0.04545]
[1764330809537,0.00016413,91394.0,91393.0,0.04645]
[1764330810224,0.02026413,91394.0,91393.0,0.04645]
[1764330810735,0.01021413,91394.0,91393.0,0.04645]
[1764330810935,0.01021413,91394.0,91393.0,0.06327389]
[1764330811136,0.03120793,91394.0,91393.0,0.06327389]
[1764330811431,0.02026413,91394.0,91393.0,0.06327389]
[1764330812035,0.02026413,91394.0,91393.0,0.42407389]
[1764330812332,0.02026413,91394.0,91393.0,0.42307389]
[1764330812525,0.02026413,91394.0,91393.0,0.42407389]
[1764330813240,0.01021413,91394.0,91393.0,0.42407389]
[1764330813833,0.02026413,91394.0,91393.0,0.42407389]
[1764330815940,0.02026413,91394.0,91393.0,0.42307389]
[1764330816240,0.02026413,91394.0,91393.0,0.42407389]
[1764330817530,0.01021413,91394.0,91393.0,0.42407389]
[1764330818434,0.01021413,91394.0,91393.0,0.42307389]
[1764330818636,0.01021413,91394.0,91393.0,0.42407389]
[1764330820742,0.00016413,91394.0,91393.0,0.42407389]
[1764330824346,0.00016413,91394.0,91393.0,0.42307389]
[1764330824546,0.00016413,91394.0,91393.0,0.42407389]
[1764330829751,0.00016413,91394.0,91393.0,0.42307389]
[1764330829948,0.00016413,91394.0,91393.0,0.42407389]
[1764330831346,0.00016413,91394.0,91393.0,0.42307389]
[1764330831551,0.02026413,91394.0,91393.0,0.42407389]
[1764330832252,0.00016413,91394.0,91393.0,0.42407389]
[1764330832552,0.01021413,91394.0,91393.0,0.42307389]
[1764330833052,0.01121413,91394.0,91393.0,0.42307389]
[1764330833455,0.02126413,91394.0,91393.0,0.42307389]
[1764330835460,0.01121413,91394.0,91393.0,0.42307389]
[1764330836953,0.00116413,91394.0,91393.0,0.42307389]
[1764330837150,0.02126413,91394.0,91393.0,0.42307389]
[1764330837355,0.46126413,91394.0,91393.0,0.42307389]
[1764330838446,0.45121413,91394.0,91393.0,0.42307389]
[1764330839560,0.45121413,91394.0,91393.0,0.43401779]
[1764330839962,0.19121413,91394.0,91393.0,0.43401779]
[1764330840462,0.43121413,91394.0,91393.0,0.43401779]
[1764330840764,0.01121413,91394.0,91393.0,0.43401779]
[1764330840964,0.13121413,91394.0,91393.0,0.43401779]
[1764330841156,0.45220793,91394.0,91393.0,0.43401779]
[1764330842166,0.00116413,91394.0,91393.0,0.43401779]
[1764330844573,0.01121413,91394.0,91393.0,0.43401779]
[1764330845070,0.00116413,91394.0,91393.0,0.43401779]
[1764330846873,0.3918411,91416.0,91415.0,0.04399]
[1764330847069,0.01005,91425.0,91424.0,0.05736]
[1764330847270,0.16248438,91434.0,91433.0,0.04399]
[1764330847466,0.47680334,91434.0,91433.0,0.04399]
[1764330848170,0.4501,91434.0,91433.0,0.04399]
[1764330848758,0.4541,91434.0,91433.0,0.04399]
[1764330849365,0.4531,91434.0,91433.0,0.04399]
[1764330852070,0.4521,91434.0,91433.0,0.04399]
[1764330852272,0.0201,91429.0,91428.0,0.0221]
[1764330852572,0.0201,91429.0,91428.0,0.04399]
[1764330852961,0.01005,91431.0,91430.0,0.05736]
[1764330853175,0.39005,91431.0,91430.0,0.05736]
[1764330853873,0.4001,91431.0,91430.0,0.05736]
[1764330855277,0.4011,91431.0,91430.0,0.05736]
[1764330858177,0.4001,91431.0,91430.0,0.05736]
[1764330858377,0.4011,91431.0,91430.0,0.05736]
[1764330858780,0.381,91431.0,91430.0,0.05736]
[1764330859579,0.011,91431.0,91430.0,0.05736]
[1764330860074,0.001,91431.0,91430.0,0.05736]
[1764330860683,0.0310387,91437.0,91436.0,0.04309]
[1764330860878,0.4610387,91437.0,91436.0,0.04309]
[1764330861178,0.00027339,91446.0,91442.0,0.04309]
[1764330861480,0.00027339,91446.0,91445.0,0.05663]
[1764330861670,0.00027339,91446.0,91445.0,0.41743]
[1764330861864,0.01005,91459.0,91455.0,0.01354]
[1764330862065,0.46005,91459.0,91458.0,0.04309]
[1764330862270,0.1422286,91465.0,91464.0,0.0540254]
[1764330862467,0.0310344,91473.0,91472.0,0.04309]
[1764330862771,0.14239263,91474.0,91473.0,0.04309]
[1764330862772,0.02026403,91474.0,91473.0,0.04309]
[1764330863079,0.39026403,91474.0,91473.0,0.04309]
[1764330863777,0.39026403,91474.0,91473.0,0.04509]
[1764330864477,0.39026403,91474.0,91473.0,0.011]
[1764330864777,0.39026403,91474.0,91473.0,0.03237]
[1764330864978,0.39026403,91474.0,91473.0,0.05409]
[1764330866082,0.39026403,91474.0,91473.0,0.0650243]
[1764330866781,0.39026403,91474.0,91473.0,0.05409]
[1764330868477,0.39026403,91474.0,91473.0,0.011]
[1764330870170,0.39026403,91474.0,91473.0,0.02831088]
[1764330873978,0.39026403,91474.0,91473.0,0.04971088]
[1764330874983,0.39026403,91474.0,91473.0,0.07293088]
[1764330878879,0.39126403,91474.0,91473.0,0.07093088]
[1764330879379,0.40426403,91474.0,91473.0,0.06193088]
[1764330884685,0.40426403,91474.0,91473.0,0.07286518]
[1764330885585,0.40426403,91474.0,91473.0,0.06193088]
[1764330887389,0.41519823,91474.0,91473.0,0.06193088]
[1764330888276,0.41519823,91474.0,91473.0,0.01731088]
[1764330888481,0.031035,91467.0,91466.0,0.4163551]
[1764330888697,0.411035,91467.0,91466.0,0.40542]
[1764330888983,0.411035,91467.0,91466.0,0.4163552]
[1764330889989,0.422035,91467.0,91466.0,0.4163552]
[1764330890291,0.44819374,91467.0,91466.0,0.4163552]
[1764330892787,0.44819374,91467.0,91466.0,0.0555552]
[1764330893788,0.44819374,91467.0,91466.0,0.07193646]
[1764330894191,0.17819374,91467.0,91466.0,0.07193646]
[1764330894684,0.16725874,91467.0,91466.0,0.07193646]
[1764330896299,0.47725874,91467.0,91466.0,0.07193646]
[1764330896892,0.47725874,91467.0,91466.0,0.06100126]
[1764330897185,0.47725874,91467.0,91466.0,0.07193646]
[1764330899492,0.47725874,91467.0,91466.0,0.06100126]
[1764330901288,0.45715874,91467.0,91466.0,0.06100126]
[1764330901601,0.47725874,91467.0,91466.0,0.06100126]
[1764330904503,0.47725874,91467.0,91466.0,0.07193646]
[1764330905296,0.45715874,91467.0,91466.0,0.07193646]
[1764330905601,0.011,91467.0,91466.0,0.43273646]
[1764330907702,0.0098165,91467.0,91466.0,0.43273646]
[1764330912597,0.0198665,91467.0,91466.0,0.43273646]
[1764330912803,0.0299165,91467.0,91466.0,0.43273646]
[1764330914502,0.0198665,91467.0,91466.0,0.43273646]
[1764330914703,0.0098165,91467.0,91466.0,0.43273646]
[1764330922610,0.00016403,91474.0,91473.0,0.0551043]
[1764330922909,0.00016403,91474.0,91473.0,0.4159043]
[1764330923299,0.16219827,91483.0,91482.0,0.0551033]
[1764330923599,0.4101,91483.0,91482.0,0.4159033]
[1764330924708,0.4181,91483.0,91482.0,0.4159033]
[1764330924910,0.38959912,91483.0,91482.0,0.4159033]
[1764330925106,0.00016393,91492.0,91491.0,0.0551022]
[1764330925308,0.00016393,91492.0,91491.0,0.4159022]
[1764330932518,0.00016393,91492.0,91491.0,0.43186223]
[1764330936116,0.02816588,91505.0,91504.0,0.0688706]
[1764330936304,0.21816588,91505.0,91504.0,0.4296706]
[1764330936505,0.0109292,91517.0,91516.0,0.0109292]
[1764330936714,0.39,91517.0,91516.0,0.0688692]
[1764330937413,0.14237142,91526.0,91520.0,0.01372]
[1764330937414,0.0109286,91522.0,91520.0,0.01372]
[1764330937719,0.15329942,91526.0,91525.0,0.05794]
[1764330937921,0.46717807,91526.0,91525.0,0.05794]
[1764330939716,0.46717807,91526.0,91525.0,0.05994]
[1764330939922,0.44120115,91526.0,91525.0,0.05994]
[1764330940115,0.44120115,91526.0,91525.0,0.07394]
[1764330942623,0.44120115,91526.0,91525.0,0.08978291]
[1764330943926,0.44120115,91526.0,91525.0,0.06877291]
[1764330944126,0.44120115,91526.0,91525.0,0.03184291]
[1764330945129,0.4671381,91526.0,91525.0,0.03184291]
[1764330947522,0.4671381,91526.0,91525.0,0.016]
[1764330960732,0.4671381,91526.0,91525.0,0.06022]
[1764330961131,0.4562101,91526.0,91525.0,0.06022]
[1764330961333,0.4562101,91526.0,91525.0,0.42102]
[1764330961738,0.43027315,91526.0,91525.0,0.42102]
[1764330962529,0.43027315,91526.0,91525.0,0.40702]
[1764330963239,0.43027315,91526.0,91525.0,0.40502]
[1764330964431,0.3948511,91526.0,91525.0,0.40502]
[1764330966428,0.42028358,91526.0,91525.0,0.04422]
[1764330966625,0.0109281,91525.0,91524.0,0.05651]
[1764330966835,0.0109286,91521.0,91520.0,0.0511032]
[1764330967132,0.83716108,91521.0,91520.0,0.0728832]
[1764330968931,0.83716108,91521.0,91520.0,0.0163732]
[1764330969131,0.0109292,91516.0,91515.0,0.05651]
[1764330969332,0.47636168,91516.0,91515.0,0.05651]
[1764330969538,0.4509292,91516.0,91515.0,0.05651]
[1764330970442,0.4509292,91516.0,91515.0,0.05751]
[1764330971334,0.4509292,91516.0,91515.0,0.07196761]
[1764330979749,0.4509292,91516.0,91515.0,0.07154761]
[1764330981050,0.4509292,91516.0,91515.0,0.05018761]
[1764330981243,0.4509292,91516.0,91515.0,0.07154761]
[1764330983650,0.4509292,91516.0,91515.0,0.07254761]
[1764330984547,0.4509292,91516.0,91515.0,0.07154761]
[1764330984851,0.4509292,91516.0,91515.0,0.05018761]
[1764330985052,0.4509292,91516.0,91515.0,0.01545761]
[1764330985244,0.0109295,91513.0,91512.0,0.05824]
[1764330985450,0.7617295,91513.0,91512.0,0.05824]
[1764330986249,0.7617295,91513.0,91512.0,0.0731852]
[1764330989949,0.39,91513.0,91512.0,0.0731852]
[1764330992653,0.4009295,91513.0,91512.0,0.0731852]
[1764330995649,0.39,91513.0,91512.0,0.0731852]
[1764330996659,0.4009295,91513.0,91512.0,0.0731852]
[1764330997453,0.39,91513.0,91512.0,0.0731852]
[1764331020861,0.4009295,91513.0,91512.0,0.0731852]
[1764331021564,0.39,91513.0,91512.0,0.0731852]
[1764331021869,0.0109272,91533.0,91530.0,0.05724]
[1764331022071,0.0109274,91531.0,91530.0,0.05724]
[1764331022271,0.4009274,91531.0,91530.0,0.05724]
[1764331022970,0.39,91531.0,91530.0,0.05724]
[1764331030673,0.39,91531.0,91530.0,0.0717128]
[1764331038095,0.41546004,91531.0,91530.0,0.0144728]
[1764331038276,0.39,91531.0,91524.0,0.03471]
[1764331038580,0.0109281,91525.0,91524.0,0.05751]
[1764331038886,0.4609281,91525.0,91524.0,0.05751]
[1764331040282,0.4609281,91525.0,91524.0,0.07143337]
[1764331041571,0.45,91525.0,91524.0,0.07143337]
[1764331041786,0.3608,91528.0,91527.0,0.04393]
[1764331042084,0.79626758,91528.0,91527.0,0.04393]
[1764331046182,0.80719538,91528.0,91527.0,0.04393]
[1764331046680,0.43546758,91528.0,91527.0,0.04393]
[1764331047480,0.44639538,91528.0,91527.0,0.04393]
[1764331049083,0.44639538,91528.0,91527.0,0.0548579]
[1764331049482,0.43546758,91528.0,91527.0,0.0548579]
[1764331049683,0.41,91528.0,91527.0,0.0548579]
[1764331051586,0.41,91528.0,91527.0,0.0552479]
[1764331051789,0.41,91528.0,91527.0,0.0320579]
[1764331051990,0.41,91528.0,91527.0,0.0552479]
[1764331052192,0.4209278,91528.0,91527.0,0.0552479]
[1764331052685,0.41,91528.0,91527.0,0.0552479]
[1764331058984,0.4209278,91528.0,91527.0,0.0552479]
[1764331059893,0.41,91528.0,91527.0,0.0552479]
[1764331060094,0.4209278,91528.0,91527.0,0.04432]
[1764331060791,0.4209278,91528.0,91524.0,0.02750337]
[1764331060792,0.0109281,91525.0,91524.0,0.02750337]
[1764331061092,0.4409281,91525.0,91524.0,0.02750337]
[1764331061295,0.4409281,91525.0,91524.0,0.05051337]
[1764331061497,0.4409281,91525.0,91524.0,0.02750337]
[1764331061987,0.43,91525.0,91524.0,0.07370337]
[1764331063392,0.43,91525.0,91524.0,0.02750337]
[1764331063597,0.43,91525.0,91524.0,0.07370337]
[1764331072303,0.43,91525.0,91524.0,0.08463157]
[1764331072505,0.43,91525.0,91524.0,0.05051337]
[1764331072701,0.43,91525.0,91524.0,0.07370337]
[1764331080405,0.43,91525.0,91524.0,0.08463157]
[1764331083409,0.15287249,91540.0,91535.0,0.04405]
[1764331083607,0.81651691,91536.0,91535.0,0.04405]
[1764331083909,0.82744371,91536.0,91535.0,0.04405]
[1764331084903,0.82744371,91536.0,91535.0,0.0549769]
[1764331091809,0.82744371,91536.0,91535.0,0.06871788]
[1764331096214,0.82744371,91536.0,91535.0,0.05779098]
[1764331096810,0.82744371,91536.0,91535.0,0.01374098]
[1764331097110,0.0109276,91529.0,91528.0,0.0243477]
[1764331097308,0.46664451,91529.0,91528.0,0.0454877]
[1764331097503,0.46664451,91529.0,91528.0,0.0685277]
[1764331098920,0.46664451,91529.0,91528.0,0.0576]
[1764331099918,0.46664451,91529.0,91528.0,0.0685278]
[1764331102016,0.46664451,91529.0,91528.0,0.08182241]
[1764331106923,0.45571691,91529.0,91528.0,0.08182241]
[1764331109824,0.43,91529.0,91528.0,0.08182241]
[1764331113332,0.45575579,91529.0,91528.0,0.08182241]
[1764331117531,0.43,91529.0,91528.0,0.08182241]
[1764331117837,0.4409276,91529.0,91528.0,0.08182241]
[1764331118725,0.43,91529.0,91528.0,0.08182241]
[1764331129739,0.45575776,91529.0,91528.0,0.08182241]
[1764331130239,0.46668536,91529.0,91528.0,0.08182241]
[1764331139646,0.4409276,91529.0,91528.0,0.08182241]
[1764331140946,0.4409276,91529.0,91528.0,0.07089461]
[1764331141344,0.4409276,91529.0,91528.0,0.01329461]
[1764331141345,0.46670506,91529.0,91528.0,0.01329461]
[1764331141653,0.0109281,91525.0,91524.0,0.0676082]
[1764331141842,0.4109281,91525.0,91524.0,0.0676082]
[1764331144558,0.4,91525.0,91524.0,0.0676082]
[1764331146161,0.4,91525.0,91524.0,0.08098486]
[1764331147155,0.0109272,91533.0,91532.0,0.0109273]
[1764331147362,0.4209272,91533.0,91532.0,0.0540273]
[1764331147559,0.4467175,91533.0,91532.0,0.0540273]
[1764331147958,0.4357903,91533.0,91532.0,0.0540273]
[1764331150061,0.4357903,91533.0,91524.0,0.04818666]
[1764331150062,0.0109274,91531.0,91524.0,0.04818666]
[1764331150261,0.0257903,91530.0,91524.0,0.07005666]
[1764331150458,0.4457903,91530.0,91524.0,0.07005666]
[1764331150660,0.0109281,91525.0,91524.0,0.07005666]
[1764331150860,0.4009281,91525.0,91524.0,0.04818666]
[1764331151060,0.4009281,91525.0,91524.0,0.07005666]
[1764331161877,0.4009281,91525.0,91524.0,0.01337666]
[1764331162071,0.4009281,91525.0,91523.0,0.0336183]
[1764331162269,0.4009281,91525.0,91523.0,0.02269]
[1764331163171,0.4009281,91525.0,91523.0,0.04602]
[1764331164469,0.0109284,91523.0,91522.0,0.00016394]
[1764331164766,0.0109295,91513.0,91512.0,0.05946]
[1764331164972,0.4209295,91513.0,91512.0,0.07230196]
[1764331166566,0.4209295,91513.0,91512.0,0.04897196]
[1764331166968,0.4209295,91513.0,91512.0,0.05097196]
[1764331167376,0.4209295,91513.0,91512.0,0.07430196]
[1764331167569,0.4209295,91513.0,91512.0,0.05097196]
[1764331167770,0.4209295,91513.0,91512.0,0.01484196]
[1764331168775,0.4209295,91513.0,91506.0,0.3608]
[1764331168776,0.0109303,91507.0,91506.0,0.3608]
[1764331168971,0.4609303,91507.0,91506.0,0.3608]
[1764331170475,0.4609303,91507.0,91506.0,0.3618]
[1764331171373,0.4609303,91507.0,91506.0,0.001]
[1764331171565,0.4609303,91507.0,91506.0,0.04414]
[1764331173073,0.4609303,91507.0,91506.0,0.04314]
[1764331173476,0.4609303,91507.0,91506.0,0.05623244]
[1764331174985,0.4609303,91507.0,91506.0,0.01309244]
[1764331175172,0.4609303,91507.0,91504.0,0.05605]
[1764331175374,0.0109305,91505.0,91504.0,0.05605]
[1764331175679,0.4109305,91505.0,91504.0,0.05605]
[1764331178666,0.4109305,91505.0,91504.0,0.06904175]
[1764331181078,0.4109305,91505.0,91504.0,0.01299175]
[1764331181375,0.4109305,91505.0,91503.0,0.00016394]
[1764331181967,0.0109319,91493.0,91488.0,0.0238425]
[1764331182170,0.3809319,91493.0,91492.0,0.05587]
[1764331183184,0.0109323,91490.0,91488.0,0.0238425]
[1764331183379,0.4009323,91490.0,91489.0,0.40394]
[1764331185786,0.4009323,91490.0,91489.0,0.40794]
[1764331186580,0.4009323,91490.0,91489.0,0.4188724]
[1764331187090,0.4009323,91490.0,91489.0,0.40794]
[1764331187587,0.4009323,91490.0,91489.0,0.42129315]
[1764331189296,0.4009323,91490.0,91489.0,0.06049315]
[1764331190286,0.4009323,91490.0,91489.0,0.05849315]
[1764331192290,0.4009323,91490.0,91489.0,0.05749315]
[1764331196881,0.4009323,91490.0,91489.0,0.05649315]
[1764331197092,0.4009323,91490.0,91489.0,0.05749315]
[1764331198392,0.4009323,91490.0,91489.0,0.05649315]
[1764331198594,0.4009323,91490.0,91489.0,0.05749315]
[1764331199098,0.4009323,91490.0,91489.0,0.05649315]
[1764331201295,0.4009323,91490.0,91489.0,0.01335315]
[1764331201491,0.4009323,91490.0,91486.0,0.00027327]
[1764331201492,0.0109327,91487.0,91486.0,0.00027327]
[1764331201795,0.9738127,91487.0,91486.0,0.00027327]
[1764331202697,0.8017327,91487.0,91486.0,0.04418327]
[1764331202893,0.9238127,91487.0,91486.0,0.04418327]
[1764331203602,0.7517327,91487.0,91486.0,0.04418327]
[1764331203800,0.9238127,91487.0,91486.0,0.04418327]
[1764331206197,0.9238127,91487.0,91486.0,0.05731572]
[1764331208705,0.9238127,91487.0,91486.0,0.03566572]
[1764331208908,0.9238127,91487.0,91486.0,0.01340572]
[1764331211412,0.77761509,91487.0,91486.0,0.01340572]
[1764331211605,0.94969509,91487.0,91486.0,0.01340572]
[1764331212805,0.94969509,91487.0,91486.0,0.05731572]
[1764331214314,0.9238127,91487.0,91486.0,0.05731572]
[1764331216114,0.5630127,91487.0,91486.0,0.05731572]
[1764331216415,0.3909327,91487.0,91486.0,0.05731572]
[1764331216612,0.5630127,91487.0,91486.0,0.05731572]
[1764331216816,0.3909327,91487.0,91486.0,0.05731572]
[1764331218216,0.3909327,91487.0,91486.0,0.05931572]
[1764331218710,0.3909327,91487.0,91486.0,0.05731572]
[1764331218910,0.3909327,91487.0,91486.0,0.05931572]
[1764331220316,0.3909327,91487.0,91486.0,0.05731572]
[1764331220617,0.3909327,91487.0,91486.0,0.05931572]
[1764331223922,0.3909327,91487.0,91486.0,0.01540572]
[1764331224114,0.3909327,91487.0,91486.0,0.01440572]
[1764331224313,0.3909327,91487.0,91486.0,0.03586572]
[1764331224510,0.7517327,91487.0,91486.0,0.01440572]
[1764331224915,0.0109338,91477.0,91476.0,0.01407432]
[1764331225123,0.6330138,91477.0,91473.0,0.01267]
[1764331225814,0.6330138,91477.0,91472.0,0.00011969]
[1764331227426,0.6330138,91477.0,91475.0,0.02723]
[1764331227827,0.3608,91476.0,91475.0,0.02723]
[1764331228127,0.7408,91476.0,91475.0,0.02723]
[1764331228821,0.7408,91476.0,91475.0,0.04153031]
[1764331229627,0.7408,91476.0,91475.0,0.04053031]
[1764331229628,0.7671838,91476.0,91475.0,0.04053031]
[1764331229822,0.7671838,91476.0,91475.0,0.04153031]
[1764331232621,0.7671838,91476.0,91475.0,0.03685031]
[1764331232929,0.7671838,91476.0,91475.0,0.02740394]
[1764331236729,0.9393038,91476.0,91475.0,0.06993394]
[1764331236946,0.7971838,91476.0,91475.0,0.06993394]
[1764331237324,0.7708,91476.0,91475.0,0.06993394]
[1764331239133,0.7708,91476.0,91475.0,0.06893394]
[1764331239332,0.7708,91476.0,91475.0,0.07193394]
[1764331239828,0.7708,91476.0,91475.0,0.06993394]
[1764331242936,0.7708,91476.0,91475.0,0.06893394]
[1764331243134,0.7708,91476.0,91475.0,0.06993394]
[1764331251043,0.5508,91476.0,91475.0,0.06993394]
[1764331251244,0.7608,91476.0,91475.0,0.06993394]
[1764331252041,0.7608,91476.0,91475.0,0.06893394]
[1764331252243,0.7608,91476.0,91475.0,0.06993394]
[1764331252745,0.4,91476.0,91475.0,0.43073394]
[1764331253043,0.04398,91495.0,91494.0,0.0534618]
[1764331253347,0.43398,91495.0,91494.0,0.0534618]
[1764331262153,0.43398,91495.0,91494.0,0.06808785]
[1764331263660,0.43398,91495.0,91494.0,0.01462605]
[1764331263852,0.0558418,91494.0,91493.0,0.0109319]
[1764331264053,0.4658418,91494.0,91493.0,0.0341819]
[1764331264252,0.4658418,91494.0,91493.0,0.0109319]
[1764331264654,0.4658418,91494.0,91493.0,0.0573219]
[1764331266657,0.45491,91494.0,91493.0,0.0573219]
[1764331269054,0.02213394,91502.0,91501.0,0.057321]
[1764331269257,0.00016394,91502.0,91501.0,0.057321]
[1764331269563,0.04507394,91502.0,91501.0,0.057321]
[1764331271267,0.48507394,91502.0,91501.0,0.057321]
[1764331271460,0.055841,91501.0,91500.0,0.3608]
[1764331271661,0.04491,91491.0,91490.0,0.0341822]
[1764331271974,0.49491,91491.0,91490.0,0.0573222]
[1764331273164,0.02197,91491.0,91490.0,0.0573222]
[1764331273464,0.14214647,91500.0,91497.0,0.0109314]
[1764331273465,0.0109317,91498.0,91497.0,0.0109314]
[1764331273665,0.4562617,91498.0,91497.0,0.0544714]
[1764331275971,0.40239,91498.0,91497.0,0.0544714]
[1764331276164,0.40239,91498.0,91497.0,0.4152714]
[1764331276361,0.42533,91498.0,91497.0,0.4152714]
[1764331280776,0.40239,91498.0,91497.0,0.4152714]
[1764331280970,0.42533,91498.0,91497.0,0.4152714]
[1764331283867,0.4362613,91498.0,91497.0,0.4152714]
[1764331287974,0.42533,91498.0,91497.0,0.4152714]
[1764331303080,0.02157,91520.0,91519.0,0.0109288]
[1764331303284,0.04343315,91526.0,91525.0,0.0564981]
[1764331303480,0.45343315,91526.0,91525.0,0.0564981]
[1764331304785,0.41027315,91526.0,91521.0,0.0564985]
[1764331304984,0.0540886,91522.0,91521.0,0.0564985]
[1764331305189,0.4940886,91522.0,91521.0,0.0564985]
[1764331306277,0.48316,91522.0,91521.0,0.0564985]
[1764331308082,0.48316,91522.0,91521.0,0.04557]
[1764331308484,0.0540891,91517.0,91516.0,0.00016394]
[1764331308683,0.4640891,91517.0,91516.0,0.00016394]
[1764331308890,0.0109304,91508.0,91507.0,0.0340202]
[1764331309083,0.4540904,91508.0,91507.0,0.0565002]
[1764331310188,0.44316,91508.0,91507.0,0.0565002]
[1764331310393,0.4540901,91508.0,91507.0,0.04557]
[1764331311395,0.4540901,91508.0,91507.0,0.04657]
[1764331313187,0.44316,91508.0,91507.0,0.04657]
[1764331313896,0.44316,91508.0,91507.0,0.02409]
[1764331314286,0.44316,91508.0,91507.0,0.04657]
[1764331320203,0.44316,91508.0,91507.0,0.04557]
[1764331320404,0.44316,91508.0,91507.0,0.04657]
[1764331321191,0.44316,91508.0,91507.0,0.001]
[1764331321697,0.44316,91508.0,91507.0,0.04705]
[1764331322800,0.04500394,91517.0,91516.0,0.0568692]
[1764331322991,0.45223394,91517.0,91516.0,0.4176692]
[1764331323201,0.47500394,91517.0,91516.0,0.4176692]
[1764331327612,0.00016394,91517.0,91516.0,0.4176692]
[1764331328902,0.00016394,91517.0,91516.0,0.43343514]
[1764331339721,0.00016394,91517.0,91516.0,0.43443514]
[1764331345326,0.00016394,91517.0,91516.0,0.43343514]
[1764331345531,0.00016394,91517.0,91516.0,0.43743514]
[1764331350526,3.15e-06,91526.0,91525.0,0.0564281]
[1764331350722,0.0109241,91559.0,91556.0,0.0109243]
[1764331350929,0.04532,91557.0,91556.0,0.0564243]
[1764331351128,0.48101478,91557.0,91556.0,0.0564243]
[1764331351324,0.48101478,91557.0,91556.0,0.0337443]
[1764331351531,0.48101478,91557.0,91556.0,0.02282]
[1764331351925,0.48101478,91557.0,91548.0,0.0131]
[1764331351926,0.43569478,91557.0,91551.0,0.0445]
[1764331352227,0.43569478,91557.0,91548.0,0.0131]
[1764331352228,0.04242,91553.0,91552.0,0.0554949]
[1764331352432,0.43242,91553.0,91552.0,0.0554949]
[1764331356127,0.43242,91553.0,91552.0,0.0682549]
[1764331356331,0.43242,91553.0,91552.0,0.08434584]
[1764331359333,0.43242,91553.0,91552.0,0.01609094]
[1764331359642,0.43242,91553.0,91547.0,0.00016383]
[1764331359643,0.0533454,91548.0,91547.0,0.00016383]